bitfinex/quotes_BTCUSD_20250314
["timestamp","ask_amount","ask_price","bid_price","bid_amount"]
[1741913246125,0.012245,81660.0,81652.0,0.528668]
[1741913246526,0.244924,81658.0,81652.0,0.27248]
[1741913246754,0.0124153,81653.0,81652.0,0.27544]
[1741913246883,0.0124153,81653.0,81652.0,0.302984]
[1741913247505,0.0124153,81653.0,81652.0,0.22334]
[1741913247710,0.3124153,81653.0,81652.0,0.14564]
[1741913248439,0.3124153,81653.0,81652.0,0.14264]
[1741913248964,0.3124153,81653.0,81652.0,0.14564]
[1741913249199,0.3001693,81653.0,81652.0,0.1604287]
[1741913249348,0.0001693,81653.0,81652.0,0.1624287]
[1741913251249,0.3124153,81653.0,81652.0,0.14664]
[1741913252293,0.3124153,81653.0,81652.0,0.004]
[1741913258643,0.0124153,81653.0,81652.0,0.004]
[1741913259217,0.0124153,81653.0,81652.0,0.343388]
[1741913259218,0.0001693,81653.0,81652.0,0.343388]
[1741913260210,0.0001693,81653.0,81652.0,0.392788]
[1741913260407,0.0001693,81653.0,81652.0,0.46509242]
[1741913261091,0.0001693,81653.0,81652.0,0.46309242]
[1741913261508,0.0001693,81653.0,81652.0,0.46809242]
[1741913262681,0.0001693,81653.0,81652.0,0.46643042]
[1741913262881,0.0001693,81653.0,81652.0,0.47143042]
[1741913272446,0.0001693,81653.0,81652.0,0.61347042]
[1741913273823,0.0001693,81653.0,81652.0,0.62801127]
[1741913276500,0.0001693,81653.0,81652.0,1.40577127]
[1741913279772,0.0001693,81653.0,81652.0,1.40077127]
[1741913279994,0.0001693,81653.0,81652.0,1.40677127]
[1741913280693,0.0001693,81653.0,81652.0,1.40177127]
[1741913281091,0.0001693,81653.0,81652.0,1.40777127]
[1741913284975,0.0001693,81653.0,81652.0,1.26573127]
[1741913285173,0.0001693,81653.0,81652.0,1.40777127]
[1741913285534,0.0001693,81653.0,81652.0,1.56573127]
[1741913285756,0.0001693,81653.0,81652.0,1.70777127]
[1741913286847,0.0001693,81653.0,81652.0,1.70177127]
[1741913287224,0.0001693,81653.0,81652.0,1.70777127]
[1741913287942,0.0001693,81653.0,81652.0,1.70177127]
[1741913289482,0.20766292,81684.0,81676.0,0.012243]
[1741913289715,0.1195,81695.0,81689.0,0.012241]
[1741913289844,0.012239,81700.0,81673.0,0.012243]
[1741913289845,0.257099,81681.0,81673.0,0.012243]
[1741913290048,0.012242,81681.0,81673.0,0.0396768]
[1741913290371,0.012242,81680.0,81674.0,0.14204]
[1741913290448,0.012242,81680.0,81674.0,0.154283]
[1741913290650,0.01265308,81680.0,81675.0,0.14204]
[1741913290943,0.01265308,81680.0,81676.0,0.14204]
[1741913291146,0.01265308,81680.0,81677.0,0.06979528]
[1741913291587,0.25751308,81680.0,81677.0,0.06979528]
[1741913292184,0.00041108,81680.0,81677.0,0.06979528]
[1741913292379,0.00041108,81680.0,81679.0,0.012243]
[1741913292824,0.00041108,81680.0,81679.0,0.142]
[1741913293196,0.00041108,81680.0,81677.0,0.07279528]
[1741913293543,0.01265308,81680.0,81677.0,0.003]
[1741913293737,0.012243,81679.0,81678.0,0.142]
[1741913293970,0.257103,81679.0,81678.0,0.142]
[1741913294419,0.00041108,81680.0,81678.0,0.1824122]
[1741913294720,0.00041108,81680.0,81679.0,0.003]
[1741913294993,0.25751008,81680.0,81679.0,0.003]
[1741913295169,0.012243,81679.0,81678.0,0.142]
[1741913295370,0.012243,81679.0,81678.0,0.145]
[1741913295698,0.012243,81679.0,81678.0,0.1854123]
[1741913295859,0.012243,81679.0,81678.0,0.1824123]
[1741913296056,0.012243,81675.0,81667.0,0.012244]
[1741913296258,0.012245,81663.0,81657.0,0.0817]
[1741913296455,0.012244,81669.0,81661.0,0.244914]
[1741913296684,0.25714,81668.0,81662.0,0.039916]
[1741913296901,0.012244,81667.0,81662.0,0.039916]
[1741913297270,0.25714,81668.0,81662.0,0.052161]
[1741913297476,0.25714,81668.0,81662.0,0.29707]
[1741913297677,0.012245,81661.0,81656.0,0.244929]
[1741913297924,0.244905,81664.0,81658.0,0.012246]
[1741913298105,0.25770071,81664.0,81658.0,0.012246]
[1741913298980,0.25770071,81664.0,81662.0,0.003]
[1741913299155,0.25770071,81664.0,81663.0,0.040217]
[1741913299329,0.257166,81659.0,81658.0,0.004]
[1741913299566,0.257166,81659.0,81658.0,0.008]
[1741913299784,0.557166,81659.0,81658.0,0.008]
[1741913299980,0.557166,81659.0,81658.0,0.004]
[1741913300598,0.557166,81659.0,81658.0,0.0186338]
[1741913300769,0.557166,81659.0,81658.0,0.0196338]
[1741913301206,0.26994571,81664.0,81658.0,0.0196338]
[1741913301434,0.012245,81660.0,81658.0,0.0196338]
[1741913301807,0.012245,81660.0,81659.0,0.142]
[1741913302581,0.257165,81660.0,81659.0,0.142]
[1741913303621,0.257165,81660.0,81659.0,0.144]
[1741913304042,0.257165,81660.0,81659.0,0.14404]
[1741913304451,0.627665,81660.0,81659.0,0.14404]
[1741913304653,0.74436647,81660.0,81659.0,0.14404]
[1741913305015,0.74436647,81660.0,81659.0,0.002]
[1741913305183,0.627665,81660.0,81659.0,0.002]
[1741913305381,0.627665,81660.0,81659.0,0.004]
[1741913305744,0.627665,81660.0,81659.0,0.002]
[1741913306819,0.257184,81653.0,81652.0,0.000338]
[1741913308122,0.257184,81653.0,81652.0,0.00046155]
[1741913308327,0.257184,81653.0,81652.0,0.00246155]
[1741913309114,0.257184,81653.0,81652.0,0.01891171]
[1741913309345,0.257184,81653.0,81652.0,0.00446155]
[1741913310594,0.244935,81655.0,81652.0,0.00446155]
[1741913310815,0.257184,81653.0,81652.0,0.00446155]
[1741913311710,0.257184,81653.0,81652.0,0.00246155]
[1741913311912,0.257184,81653.0,81652.0,0.00046155]
[1741913312351,0.557184,81653.0,81652.0,0.00146155]
[1741913312666,0.557184,81653.0,81652.0,0.00046155]
[1741913313234,0.557184,81653.0,81652.0,0.00146155]
[1741913313637,0.6643373,81653.0,81652.0,0.00146155]
[1741913313878,0.557184,81653.0,81652.0,0.00046155]
[1741913318064,0.012246,81653.0,81652.0,0.00046155]
[1741913321196,0.000169,81653.0,81652.0,0.39968955]
[1741913321900,0.245107,81653.0,81652.0,0.14250155]
[1741913322057,0.000169,81653.0,81652.0,0.14250155]
[1741913322486,0.245107,81653.0,81652.0,0.22220591]
[1741913322689,0.257353,81653.0,81652.0,0.22220591]
[1741913322861,0.000169,81653.0,81652.0,0.22220591]
[1741913323747,0.000169,81653.0,81652.0,0.23445291]
[1741913323954,0.000169,81653.0,81652.0,0.36575291]
[1741913324178,0.00010322,81653.0,81652.0,0.36575291]
[1741913324640,0.00010322,81653.0,81652.0,0.37877089]
[1741913324776,0.00010322,81653.0,81652.0,0.36575291]
[1741913324979,0.00010322,81653.0,81652.0,0.38029376]
[1741913325377,0.00010322,81653.0,81652.0,0.38629376]
[1741913325824,0.00010322,81653.0,81652.0,0.38554353]
[1741913326034,0.012242,81681.0,81675.0,0.076]
[1741913326237,0.012242,81681.0,81676.0,0.4382078]
[1741913326449,0.012242,81681.0,81677.0,0.14204]
[1741913326914,0.2698886,81683.0,81677.0,0.14204]
[1741913327115,0.257077,81688.0,81681.0,0.244853]
[1741913327313,0.012242,81685.0,81678.0,0.257106]
[1741913327454,0.012242,81685.0,81679.0,0.09511878]
[1741913327653,0.00058006,81684.0,81680.0,0.012242]
[1741913327856,0.01396807,81684.0,81683.0,0.244848]
[1741913328057,0.01396807,81684.0,81683.0,0.25709]
[1741913328058,0.00058006,81684.0,81683.0,0.25709]
[1741913328269,0.00058006,81684.0,81683.0,0.33409]
[1741913328648,0.00058006,81684.0,81683.0,0.11152793]
[1741913329129,0.00058006,81684.0,81683.0,0.077]
[1741913329332,0.24542506,81684.0,81678.0,0.077]
[1741913329502,0.257095,81682.0,81678.0,0.077]
[1741913329703,0.257099,81681.0,81679.0,0.142]
[1741913329867,0.012242,81680.0,81679.0,0.142]
[1741913330077,0.24542506,81684.0,81679.0,0.1929078]
[1741913330384,0.24542506,81684.0,81683.0,0.001]
[1741913330596,0.25766706,81684.0,81683.0,0.001]
[1741913330794,0.25766706,81684.0,81679.0,0.1929078]
[1741913331200,0.25766706,81684.0,81679.0,0.1949078]
[1741913331396,0.012242,81681.0,81679.0,0.144]
[1741913331595,0.257099,81680.0,81679.0,0.002]
[1741913331845,0.257099,81680.0,81679.0,0.145]
[1741913332105,0.257099,81680.0,81679.0,0.144]
[1741913332223,0.244852,81682.0,81679.0,0.144]
[1741913332423,0.244852,81682.0,81680.0,0.0478118]
[1741913332742,0.244852,81682.0,81681.0,0.142]
[1741913333183,0.257094,81682.0,81681.0,0.142]
[1741913334252,0.26853195,81682.0,81681.0,0.143]
[1741913335077,0.01143795,81682.0,81681.0,0.143]
[1741913335279,0.01143795,81682.0,81681.0,0.23357866]
[1741913335616,0.01143795,81682.0,81681.0,0.23457866]
[1741913336021,0.01143795,81682.0,81681.0,0.31097866]
[1741913336156,0.00058006,81684.0,81683.0,0.088642]
[1741913336356,0.00058006,81684.0,81683.0,0.08986611]
[1741913336536,0.00058006,81684.0,81683.0,0.18764052]
[1741913337104,0.00058006,81684.0,81683.0,0.32964052]
[1741913337342,0.00058006,81684.0,81683.0,0.32841641]
[1741913338056,0.00058006,81684.0,81683.0,0.21836]
[1741913338618,0.00058006,81684.0,81683.0,0.22136]
[1741913339252,0.00058006,81684.0,81683.0,0.233602]
[1741913339602,0.00058006,81684.0,81683.0,0.236602]
[1741913340828,0.00058006,81684.0,81683.0,0.094642]
[1741913341031,0.00058006,81684.0,81683.0,0.33581355]
[1741913341616,0.00058006,81684.0,81683.0,0.18161155]
[1741913341997,0.00058006,81684.0,81683.0,0.32357155]
[1741913342837,0.01282206,81684.0,81683.0,0.006]
[1741913343042,0.01282206,81684.0,81683.0,0.14796]
[1741913343249,0.04708741,81684.0,81683.0,0.14796]
[1741913343633,0.04708741,81684.0,81683.0,0.14496]
[1741913344098,0.04708741,81684.0,81683.0,0.14296]
[1741913344292,0.04708741,81684.0,81683.0,0.14396]
[1741913344647,0.02424417,81684.0,81683.0,0.14396]
[1741913347696,0.02424417,81684.0,81683.0,0.002]
[1741913347697,0.40501689,81684.0,81683.0,0.002]
[1741913347897,0.45021689,81684.0,81683.0,0.002]
[1741913348104,0.36944417,81684.0,81683.0,0.002]
[1741913348701,0.36944417,81684.0,81683.0,0.001]
[1741913348900,0.312242,81682.0,81681.0,0.0003378]
[1741913349496,0.312242,81682.0,81677.0,0.0003378]
[1741913349497,0.012243,81678.0,81677.0,0.0003378]
[1741913350033,0.557106,81678.0,81677.0,0.0003378]
[1741913351964,0.557106,81678.0,81677.0,0.03252998]
[1741913352191,0.557106,81678.0,81677.0,0.0003378]
[1741913352626,0.557106,81678.0,81677.0,2.2055378]
[1741913353629,0.56852811,81678.0,81677.0,2.2055378]
[1741913354899,0.59147982,81678.0,81677.0,2.2055378]
[1741913358321,0.56852811,81678.0,81677.0,2.2055378]
[1741913364383,0.59146705,81678.0,81677.0,2.2055378]
[1741913365720,0.56852811,81678.0,81677.0,2.2055378]
[1741913371090,0.01142211,81678.0,81677.0,2.40149869]
[1741913371517,0.02366511,81678.0,81677.0,2.40149869]
[1741913373070,0.02366511,81678.0,81677.0,2.2815378]
[1741913374031,0.012243,81678.0,81677.0,2.2815378]
[1741913374239,0.3,81680.0,81677.0,2.2815378]
[1741913374416,0.012243,81678.0,81677.0,2.2815378]
[1741913375934,0.257104,81679.0,81677.0,2.2815378]
[1741913376163,0.557104,81679.0,81678.0,0.11996089]
[1741913378180,0.07650751,81679.0,81678.0,0.11996089]
[1741913378407,0.08875051,81679.0,81678.0,0.11996089]
[1741913378975,0.16586617,81680.0,81678.0,0.11996089]
[1741913379215,0.0001689,81681.0,81678.0,0.11996089]
[1741913379419,0.0001689,81681.0,81680.0,0.012242]
[1741913379644,0.0001689,81681.0,81680.0,2.297342]
[1741913380931,0.0001689,81681.0,81680.0,2.343942]
[1741913382978,0.0001689,81681.0,81680.0,2.347942]
[1741913383222,0.0001689,81681.0,81680.0,2.350942]
[1741913383474,0.02312031,81681.0,81680.0,2.46790289]
[1741913383692,0.02312031,81681.0,81680.0,2.47366]
[1741913383921,0.02312031,81681.0,81680.0,2.738759]
[1741913384608,0.03459241,81681.0,81680.0,2.738759]
[1741913387019,0.03459241,81681.0,81680.0,2.738719]
[1741913387250,0.03459241,81681.0,81680.0,2.85867989]
[1741913388509,0.23015367,81696.0,81689.0,0.257069]
[1741913388652,0.23027694,81696.0,81689.0,0.257069]
[1741913389228,0.00012327,81696.0,81691.0,0.257063]
[1741913389366,0.00012327,81696.0,81692.0,0.0771208]
[1741913389563,0.24493527,81696.0,81693.0,2.2052]
[1741913389772,0.01224,81695.0,81694.0,0.14192]
[1741913389987,0.00012327,81696.0,81695.0,0.0802]
[1741913390156,0.00012327,81696.0,81695.0,0.23436]
[1741913390358,0.00012327,81696.0,81695.0,0.26120118]
[1741913390600,0.00012327,81696.0,81695.0,0.11928118]
[1741913390799,0.00012327,81696.0,81695.0,0.26120118]
[1741913391271,0.00012327,81696.0,81695.0,0.24896118]
[1741913391471,0.00012327,81696.0,81695.0,0.16638118]
[1741913391709,0.00012327,81696.0,81695.0,0.30952508]
[1741913391885,0.00012327,81696.0,81695.0,0.30830118]
[1741913392706,0.00012327,81696.0,81695.0,0.30930118]
[1741913392903,0.00012327,81696.0,81695.0,0.30830118]
[1741913393103,0.00012327,81696.0,81695.0,0.31030118]
[1741913393306,0.00012327,81696.0,81695.0,0.31330118]
[1741913393514,0.00012327,81696.0,81695.0,2.48666]
[1741913393960,0.00012327,81696.0,81695.0,2.49466]
[1741913395708,0.00012327,81696.0,81695.0,2.35274]
[1741913396072,0.00012327,81696.0,81695.0,2.49466]
[1741913396279,0.00012327,81696.0,81695.0,2.36728085]
[1741913396497,0.0001692,81713.0,81712.0,0.137238]
[1741913396653,0.00024473,81713.0,81712.0,2.3302]
[1741913396852,0.00024473,81713.0,81712.0,2.2827]
[1741913397092,0.00024473,81713.0,81712.0,2.436858]
[1741913397893,0.03686661,81713.0,81712.0,2.436858]
[1741913398092,0.03686661,81713.0,81712.0,2.46769918]
[1741913398326,0.03686661,81713.0,81712.0,2.32577918]
[1741913398707,0.03686661,81713.0,81712.0,2.46765918]
[1741913398918,0.00024473,81713.0,81712.0,2.47265918]
[1741913399391,0.00024473,81713.0,81712.0,2.46765918]
[1741913399844,0.00024473,81713.0,81712.0,2.47165918]
[1741913401155,0.00024473,81713.0,81712.0,2.32977918]
[1741913401156,0.0345668,81713.0,81712.0,2.32977918]
[1741913401393,0.0345668,81713.0,81712.0,2.47165918]
[1741913401783,0.0345668,81713.0,81712.0,2.32977918]
[1741913402010,0.0345668,81713.0,81712.0,2.47165918]
[1741913402750,0.0345668,81713.0,81712.0,2.32977918]
[1741913402950,0.0345668,81713.0,81712.0,2.47165918]
[1741913403156,0.0345668,81713.0,81712.0,2.32977918]
[1741913403370,0.0345668,81713.0,81712.0,2.47165918]
[1741913403578,0.02312611,81713.0,81712.0,2.47165918]
[1741913404313,0.02312611,81713.0,81712.0,2.37547918]
[1741913404513,0.00024473,81713.0,81712.0,2.51735918]
[1741913405093,0.00024473,81713.0,81712.0,2.51335918]
[1741913405542,0.00024473,81713.0,81712.0,2.51835918]
[1741913405744,0.00024473,81713.0,81712.0,2.37647918]
[1741913405955,0.00024473,81713.0,81712.0,2.51835918]
[1741913407155,0.00024473,81713.0,81712.0,2.51435918]
[1741913407796,0.00024473,81713.0,81712.0,2.51935918]
[1741913408583,0.00024473,81713.0,81712.0,2.51931918]
[1741913408980,0.00024473,81713.0,81712.0,2.37747918]
[1741913409186,0.00024473,81713.0,81712.0,2.51931918]
[1741913409887,0.00024473,81713.0,81712.0,2.37747918]
[1741913410092,0.00024473,81713.0,81712.0,2.39202003]
[1741913410506,0.00024473,81713.0,81712.0,2.53386003]
[1741913411685,0.00024473,81713.0,81712.0,2.52886003]
[1741913411872,0.00024473,81713.0,81712.0,2.52986003]
[1741913412074,0.00024473,81713.0,81712.0,2.38802003]
[1741913412225,0.00024473,81713.0,81712.0,2.52986003]
[1741913412735,0.00024473,81713.0,81712.0,2.52386003]
[1741913413137,0.00024473,81713.0,81712.0,2.52986003]
[1741913413388,7.3e-07,81713.0,81712.0,3.00456102]
[1741913413518,0.0001693,81722.0,81712.0,3.00456102]
[1741913413519,3e-07,81722.0,81721.0,0.62651185]
[1741913413744,3e-07,81722.0,81721.0,0.87751284]
[1741913414197,4e-07,81726.0,81725.0,0.611959]
[1741913414443,0.244578,81774.0,81725.0,0.611959]
[1741913414444,0.012229,81771.0,81761.0,0.083]
[1741913414637,0.012229,81769.0,81762.0,2.3613431]
[1741913414839,0.256831,81766.0,81762.0,2.3613431]
[1741913415036,0.256831,81766.0,81762.0,2.2195031]
[1741913415245,0.256826,81768.0,81763.0,0.14184]
[1741913415445,0.012229,81767.0,81764.0,0.10565779]
[1741913415588,0.03426427,81765.0,81764.0,0.10565779]
[1741913416751,0.01223,81764.0,81763.0,0.14184]
[1741913417300,0.03426427,81765.0,81763.0,0.14184]
[1741913417729,0.04649427,81765.0,81763.0,0.14184]
[1741913417934,0.03426427,81765.0,81763.0,0.14484]
[1741913418152,0.03426427,81764.0,81763.0,0.14184]
[1741913418419,0.03426427,81764.0,81763.0,0.26480089]
[1741913418551,0.03426427,81764.0,81763.0,0.14484]
[1741913418753,0.03426427,81764.0,81763.0,0.14784]
[1741913419273,0.03426427,81764.0,81763.0,0.14484]
[1741913419680,0.03416312,81764.0,81763.0,0.14484]
[1741913419850,0.03416312,81764.0,81763.0,2.35004]
[1741913420055,0.03416312,81764.0,81763.0,2.47000089]
[1741913420522,0.03416312,81764.0,81763.0,2.47300089]
[1741913420889,0.03416312,81764.0,81763.0,2.48523089]
[1741913421833,0.03416312,81764.0,81763.0,2.47300089]
[1741913422012,0.01223,81766.0,81763.0,2.47300089]
[1741913422215,0.01223,81765.0,81764.0,0.02684118]
[1741913422827,0.01223,81766.0,81764.0,0.02684118]
[1741913423075,0.256826,81767.0,81764.0,0.02684118]
[1741913423895,0.256826,81767.0,81764.0,0.02984118]
[1741913424151,0.0128312,81769.0,81764.0,0.02684118]
[1741913424354,0.0128312,81769.0,81765.0,0.0771208]
[1741913424524,0.256819,81770.0,81765.0,0.0771208]
[1741913424728,0.0126892,81769.0,81765.0,0.0771208]
[1741913425089,0.256819,81770.0,81765.0,0.0771208]
[1741913425174,0.256823,81769.0,81764.0,0.03184118]
[1741913425878,0.256823,81769.0,81765.0,2.2052]
[1741913426351,0.02519965,81769.0,81765.0,2.2072]
[1741913426752,0.24499055,81773.0,81765.0,2.2072]
[1741913426753,0.00041155,81773.0,81772.0,0.012229]
[1741913426948,0.00041155,81773.0,81772.0,2.60499374]
[1741913427151,0.00041155,81773.0,81772.0,2.681371]
[1741913427374,5.5e-07,81773.0,81772.0,3.04441185]
[1741913427682,5.5e-07,81773.0,81772.0,3.17153265]
[1741913427887,5.5e-07,81773.0,81772.0,3.17253265]
[1741913428272,5.5e-07,81773.0,81772.0,3.03077265]
[1741913428476,5.5e-07,81773.0,81772.0,3.15351731]
[1741913428701,5.5e-07,81773.0,81772.0,3.18971761]
[1741913428862,0.0008,81789.0,81777.0,0.39923585]
[1741913429050,0.00029251,81778.0,81777.0,0.42607703]
[1741913429455,0.00029251,81778.0,81777.0,0.56783703]
[1741913430774,0.00029251,81778.0,81777.0,0.57383703]
[1741913430996,0.00029251,81778.0,81777.0,0.56783703]
[1741913431310,0.00029251,81778.0,81777.0,0.57383703]
[1741913431926,0.00029251,81778.0,81777.0,0.57983703]
[1741913432147,0.00029251,81778.0,81777.0,0.57383703]
[1741913432527,0.00029251,81778.0,81777.0,0.57983703]
[1741913432761,0.00029251,81778.0,81777.0,2.3451]
[1741913432762,0.01252051,81778.0,81777.0,2.3451]
[1741913432957,0.01252051,81778.0,81777.0,2.35892]
[1741913433159,0.00029251,81778.0,81777.0,2.35892]
[1741913433380,0.01252051,81778.0,81777.0,2.35892]
[1741913433591,0.01252051,81778.0,81777.0,2.35292]
[1741913433817,0.01252051,81778.0,81777.0,2.34692]
[1741913434017,0.01252051,81778.0,81777.0,2.32516089]
[1741913434209,0.01252051,81778.0,81777.0,2.47288089]
[1741913434408,0.01252051,81778.0,81777.0,2.46688089]
[1741913434808,0.01252051,81778.0,81777.0,2.46888089]
[1741913435192,0.01252051,81778.0,81777.0,2.47488089]
[1741913435594,0.01252051,81778.0,81777.0,2.46888089]
[1741913436013,0.01252051,81778.0,81777.0,2.47088089]
[1741913436213,0.00029251,81778.0,81777.0,2.34138889]
[1741913436374,0.00029251,81778.0,81777.0,2.48310889]
[1741913436578,0.00029251,81778.0,81777.0,2.47088089]
[1741913437272,0.00029251,81778.0,81777.0,2.46888089]
[1741913437681,0.00029251,81778.0,81777.0,2.47188089]
[1741913438063,0.00029251,81778.0,81777.0,2.46988089]
[1741913438265,0.00029251,81778.0,81777.0,2.48210889]
[1741913438472,0.00029251,81778.0,81777.0,2.56110889]
[1741913438677,0.00029251,81778.0,81777.0,2.60690889]
[1741913439043,0.00029251,81778.0,81777.0,2.60290889]
[1741913439457,0.00029251,81778.0,81777.0,2.60690889]
[1741913440098,0.00029251,81778.0,81777.0,2.60290889]
[1741913440709,0.00029251,81778.0,81777.0,2.59990889]
[1741913440920,0.00029251,81778.0,81777.0,2.60390889]
[1741913441314,0.00029251,81778.0,81777.0,2.59990889]
[1741913441470,0.00029251,81778.0,81777.0,2.60390889]
[1741913441874,0.00029251,81778.0,81777.0,2.61844974]
[1741913442076,0.00029251,81778.0,81777.0,2.62344974]
[1741913442465,5.1e-07,81778.0,81777.0,2.48172974]
[1741913442707,5.1e-07,81778.0,81777.0,3.09815073]
[1741913443082,5.1e-07,81778.0,81777.0,2.95143073]
[1741913443295,5.1e-07,81778.0,81777.0,3.09311073]
[1741913443493,5.1e-07,81778.0,81777.0,3.04911073]
[1741913443698,5.1e-07,81778.0,81777.0,3.09511073]
[1741913443906,5.1e-07,81778.0,81777.0,3.03911073]
[1741913444303,5.1e-07,81778.0,81777.0,3.08911073]
[1741913444508,5.1e-07,81778.0,81777.0,3.04511073]
[1741913444756,5.1e-07,81778.0,81777.0,3.09011073]
[1741913444959,5.1e-07,81778.0,81777.0,2.96440974]
[1741913445085,5.1e-07,81778.0,81777.0,3.04011073]
[1741913445315,5.1e-07,81778.0,81777.0,3.05111073]
[1741913445519,5.1e-07,81778.0,81777.0,3.10111073]
[1741913445720,5.1e-07,81778.0,81777.0,2.95943073]
[1741913445938,8e-05,81794.0,81788.0,0.38696]
[1741913446133,8e-05,81794.0,81788.0,2.83843035]
[1741913446628,8e-05,81794.0,81788.0,2.69675035]
[1741913447008,8e-05,81794.0,81788.0,2.83843035]
[1741913447211,8e-05,81794.0,81788.0,2.84443035]
[1741913447415,0.244489,81803.0,81788.0,2.84443035]
[1741913447416,0.21453104,81803.0,81798.0,0.256727]
[1741913447740,0.00012329,81803.0,81799.0,0.02613748]
[1741913447966,0.00012329,81803.0,81800.0,2.2052]
[1741913447967,0.01234729,81803.0,81800.0,2.2052]
[1741913448120,0.012225,81793.0,81788.0,0.0900495]
[1741913448368,0.012225,81793.0,81781.0,0.0755]
[1741913448369,0.012227,81781.0,81775.0,0.244572]
[1741913448523,0.012227,81782.0,81777.0,0.256795]
[1741913448725,0.012227,81784.0,81778.0,0.012228]
[1741913448921,0.256784,81781.0,81776.0,0.14168]
[1741913449269,0.012228,81778.0,81776.0,0.14168]
[1741913450032,0.256788,81780.0,81775.0,0.012228]
[1741913450226,0.256788,81780.0,81776.0,0.14168]
[1741913450628,0.244561,81780.0,81776.0,0.14768]
[1741913450797,0.312227,81784.0,81777.0,0.256795]
[1741913451000,0.01916732,81780.0,81779.0,0.256788]
[1741913451323,0.01916732,81780.0,81779.0,0.35045078]
[1741913451767,0.01916732,81780.0,81779.0,0.10589078]
[1741913452154,0.01916732,81780.0,81779.0,0.11189078]
[1741913452974,0.05,81814.0,81779.0,0.11189078]
[1741913452975,0.012224,81801.0,81794.0,0.244514]
[1741913453389,0.3,81800.0,81795.0,0.14168]
[1741913453591,0.256721,81801.0,81795.0,0.14168]
[1741913453592,0.256727,81799.0,81795.0,0.14168]
[1741913453965,0.244507,81798.0,81795.0,0.14168]
[1741913454529,0.256735,81796.0,81795.0,0.14168]
[1741913454722,0.012225,81795.0,81794.0,0.003]
[1741913454892,0.012225,81795.0,81794.0,0.1706557]
[1741913455095,0.012225,81795.0,81794.0,2.3758557]
[1741913455307,0.256732,81798.0,81794.0,2.2341757]
[1741913455476,0.5445,81800.0,81794.0,2.3758557]
[1741913455683,0.556724,81800.0,81794.0,2.3880807]
[1741913455907,0.244505,81798.0,81795.0,0.12296089]
[1741913456114,0.25673,81798.0,81796.0,2.2052]
[1741913456313,0.012225,81798.0,81796.0,2.2052]
[1741913456514,0.556724,81800.0,81796.0,2.2052]
[1741913457113,0.3,81800.0,81796.0,2.44971]
[1741913457328,0.3,81800.0,81799.0,0.256726]
[1741913457660,0.3,81800.0,81799.0,0.398406]
[1741913457779,0.3,81800.0,81799.0,2.461926]
[1741913457979,0.0001689,81803.0,81802.0,0.012224]
[1741913458193,0.00029219,81803.0,81802.0,2.21864635]
[1741913458398,0.00029219,81803.0,81802.0,2.3861997]
[1741913458996,0.00029219,81803.0,81802.0,2.2433997]
[1741913459283,0.00029219,81803.0,81802.0,2.3862397]
[1741913460338,0.00029219,81803.0,81802.0,2.35504]
[1741913460542,0.00029219,81803.0,81802.0,2.35304]
[1741913460959,0.00029219,81803.0,81802.0,2.35804]
[1741913461764,0.25700519,81803.0,81802.0,2.35804]
[1741913461969,0.25700519,81803.0,81802.0,2.2152]
[1741913461970,0.55700519,81803.0,81802.0,2.2152]
[1741913462185,0.67112352,81803.0,81802.0,2.2152]
[1741913462558,0.57616871,81803.0,81802.0,2.2152]
[1741913462758,0.57616871,81803.0,81802.0,2.2102]
[1741913463141,0.56612157,81803.0,81802.0,2.2132]
[1741913463345,0.56612157,81803.0,81802.0,2.2082]
[1741913463544,0.56612157,81803.0,81802.0,2.2052]
[1741913463748,0.56612157,81803.0,81802.0,2.2062]
[1741913465150,0.56612157,81803.0,81802.0,2.2052]
[1741913465548,0.31251619,81803.0,81802.0,2.2052]
[1741913466192,0.33167994,81803.0,81802.0,2.2052]
[1741913466525,0.31945594,81803.0,81802.0,2.2052]
[1741913466738,0.01945594,81803.0,81802.0,2.218424]
[1741913467159,0.01945594,81803.0,81802.0,2.34984]
[1741913467409,0.01945594,81803.0,81802.0,2.47080089]
[1741913467743,0.01945594,81803.0,81802.0,2.48202489]
[1741913468150,0.01945594,81803.0,81802.0,2.34038489]
[1741913468351,0.01945594,81803.0,81802.0,2.48390489]
[1741913468580,0.01945594,81803.0,81802.0,2.47168089]
[1741913468782,0.01945594,81803.0,81802.0,2.35072]
[1741913469259,0.01945594,81803.0,81802.0,2.35272]
[1741913469777,0.03167994,81803.0,81802.0,2.35272]
[1741913469993,0.01945594,81803.0,81802.0,2.35272]
[1741913470399,0.01945594,81803.0,81802.0,2.47268089]
[1741913470599,0.01945594,81803.0,81802.0,2.72939689]
[1741913471193,0.01945594,81803.0,81802.0,2.58587689]
[1741913471398,0.01945594,81803.0,81802.0,2.72935689]
[1741913471559,0.01945594,81803.0,81802.0,2.72943689]
[1741913472015,0.01945594,81803.0,81802.0,2.58587689]
[1741913472470,0.01945594,81803.0,81802.0,2.72943689]
[1741913474221,0.00029219,81803.0,81802.0,2.58587689]
[1741913474422,0.00029219,81803.0,81802.0,2.72931689]
[1741913474839,0.00029219,81803.0,81802.0,2.80631689]
[1741913475204,0.00029219,81803.0,81802.0,2.66287689]
[1741913475416,0.00029219,81803.0,81802.0,2.80631689]
[1741913475627,0.00029219,81803.0,81802.0,2.80627689]
[1741913476393,0.00029219,81803.0,81802.0,2.70841469]
[1741913476546,0.00029219,81803.0,81802.0,2.85173469]
[1741913477311,0.00029219,81803.0,81802.0,2.72295554]
[1741913477518,0.00029219,81803.0,81802.0,2.86631554]
[1741913478379,2.9e-07,81804.0,81803.0,0.15986485]
[1741913478617,2.9e-07,81804.0,81803.0,0.52818971]
[1741913478791,2.9e-07,81804.0,81803.0,0.52696782]
[1741913479856,2.9e-07,81804.0,81803.0,0.38352782]
[1741913480058,2.9e-07,81804.0,81803.0,0.54954684]
[1741913480435,2.9e-07,81804.0,81803.0,0.41202684]
[1741913480847,2.9e-07,81804.0,81803.0,0.56146684]
[1741913481548,2.9e-07,81804.0,81803.0,2.76666684]
[1741913481751,0.0123226,81826.0,81825.0,0.012221]
[1741913481916,0.0123226,81826.0,81825.0,2.74384766]
[1741913482110,0.0123226,81826.0,81825.0,2.59898585]
[1741913482313,0.0123226,81826.0,81825.0,2.74258585]
[1741913482512,0.0123226,81826.0,81825.0,2.70294783]
[1741913482715,0.0123226,81826.0,81825.0,2.84650783]
[1741913482987,0.0123226,81826.0,81825.0,2.70794783]
[1741913483177,0.0073226,81826.0,81825.0,2.85146783]
[1741913483375,0.0073226,81826.0,81825.0,2.70294783]